Cogmind - Beta 15 @@@ ROGUE MODE // 2025.05.11 @ 00:50:56 Player: CrossedViper Result: Destroyed by G-73 Enforcer with Phase Gun Performance ------------- Evolutions (6) 3000 Regions Visited (16) 3200 Robots Destroyed (271) 1355 Value Destroyed (11227) 11227 Prototype IDs (39) 780 Alien Tech Used (0) 0 Bonus (7966) 7966 TOTAL SCORE: 27528 Bonus ------- Triggered High Security 500 High Alert Combat Kills 3191 Follower Combat Kills 4488 Network Hubs Disabled 200 Registered with UFD 300 Met Optimus in HQ 500 Met Imprinter 300 Destroyed Z-Imprinter 1000 Built Enhanced Grunts 300 A7 Reached Mainframe 300 Met R17 at Cetus 500 Friendly Fire -3613 Cogmind --------- Core Integrity 0/1150 Matter 177/300 Energy 89/100 System Corruption 7% Temperature Cool (0) Movement Core (200) Ox3 Location -4/Armory Parts ------- > --- POWER (2) -------- (None) > --- PROPULSION (4) --- Centrium Leg Centrium Leg Centrium Leg Centrium Leg > --- UTILITY (10) ----- Experimental Terrain Scan Processor Advanced Hacking Suite > --- WEAPON (3) ------- Hardcell Cannon > --- INVENTORY (5) ---- Large Storage Unit Zionite Metafield Generator Experimental Reaction Control System Multitool Peak State ------------ > --- POWER ------------ Quantum Reactor Light Quantum Reactor > --- PROPULSION ------- Centrium Heavy Treads Biometal Heavy Treads > --- UTILITY ---------- Advanced Cooling System Large Storage Unit Experimental Terrain Scanner Experimental Terrain Scan Processor Makeshift Salvage Targeting Computer Core Analyzer Advanced Cloaking Device Advanced Cloaking Device Layered Light Armor Plating Advanced Hacking Suite > --- WEAPON ----------- Enhanced Nova Cannon Enhanced Nova Cannon Enhanced Hardcell Cannon > --- INVENTORY -------- Neutrino Core Centrium Wheel Combat Linear Gravjet Advanced Cooling System Zionite Metafield Generator Quantum Capacitor Experimental Reaction Control System Advanced Cloaking Device Advanced Cloaking Device Advanced Cloaking Device Advanced Cloaking Device Multitool CR-A16's Pointy Stick GAL Module [Rating: 152] Favorites ----------- Power Fission Core Engine Subdweller Power Source Power Core Fission Core Reactor Quantum Reactor Propulsion Light Treads Treads Light Treads Leg Zionite Composite Leg I Wheel Overtuned Huge Scrapsphere Hover Unit Zionite Glidesys II Utility Core Analyzer Device Experimental Heat Sink Storage Large Storage Unit Processor Core Analyzer Hackware Improved Hacking Suite Protection Zionite Heavy Carapace Weapon Subdweller Laser Energy Gun Subdweller Laser Energy Cannon Heavy Plasma Cannon Ballistic Gun Subdweller Machine Gun Ballistic Cannon Heavy Flak Cannon Launcher Long-range Missile Launcher Special Weapon Multitool Piercing Weapon Heavy Pick Build | -11 -10 -10 -9 -9 -6 -6 -6 -6 -5 -5 -5 -5 -5 -5 -4 -4 ------- Run | Yrd Mat Sub Rec Scr Fac Low Zio Dee Pro Fac Ext Cet Arc Hub Fac Arm Slots Evolved 12 | . . . . . 8 . . . . 2 . . . . 2 . Power 1 | . . . . . . . . . . 1 . . . . . . Propulsion 2 | . . . . . 1 . . . . 1 . . . . . . Utility 8 | . . . . . 6 . . . . . . . . . 2 . Weapon 1 | . . . . . 1 . . . . . . . . . . . Parts Attached 203 | 7 3 24 1 4 31 1 1 24 15 11 23 5 1 2 12 38 Power 18 | 1 . 3 . . 1 . . 2 1 1 3 . . . 2 4 Engine 6 | 1 . 3 . . . . . . 1 1 . . . . . . Core 5 | . . . . . 1 . . 1 . . 2 . . . . 1 Reactor 7 | . . . . . . . . 1 . . 1 . . . 2 3 Propulsion 53 | 2 . 6 1 3 9 . . 7 1 3 8 1 . . 1 11 Treads 17 | 2 . 6 1 1 2 . . . . . . 1 . . 1 3 Leg 26 | . . . . 1 7 . . 3 1 3 6 . . . . 5 Wheel 4 | . . . . 1 . . . . . . 2 . . . . 1 Hover 6 | . . . . . . . . 4 . . . . . . . 2 Flight . | . . . . . . . . . . . . . . . . . Utility 74 | 2 1 4 . . 13 1 1 11 6 4 6 3 . 1 7 14 Device 43 | 1 . 3 . . 5 . 1 6 5 3 4 1 . 1 3 10 Storage 5 | 1 1 . . . 2 . . 1 . . . . . . . . Processor 10 | . . . . . 6 . . . . . 1 . . . 3 . Hackware 2 | . . . . . . . . . . 1 . . . . . 1 Protection 14 | . . 1 . . . 1 . 4 1 . 1 2 . . 1 3 Artifact . | . . . . . . . . . . . . . . . . . Weapon 58 | 2 2 11 . 1 8 . . 4 7 3 6 1 1 1 2 9 Energy Gun 13 | . . 4 . 1 1 . . 2 2 . 1 . . 1 . 1 Energy Cannon 7 | . . 1 . . 2 . . . . . . . . . . 4 Ballistic Gun 18 | 2 . 4 . . . . . . 5 1 2 1 1 . 1 1 Ballistic Cannon 7 | . . 1 . . 2 . . . . . 1 . . . 1 2 Launcher 8 | . 2 1 . . 1 . . 1 . 2 . . . . . 1 Special Weapon 3 | . . . . . 1 . . 1 . . 1 . . . . . Impact Weapon . | . . . . . . . . . . . . . . . . . Slashing Weapon . | . . . . . . . . . . . . . . . . . Piercing Weapon 2 | . . . . . 1 . . . . . 1 . . . . . Special Melee Weapon . | . . . . . . . . . . . . . . . . . Unidentified Prototypes 22 | . . . . . . 1 1 12 1 1 1 3 . 2 . . Parts Lost 58 | . . 7 . . 4 . . 20 1 2 2 . . . 6 16 Power 5 | . . 2 . . . . . . . . . . . . 1 2 Propulsion 12 | . . . . . 2 . . 7 1 . . . . . . 2 Utility 21 | . . 1 . . . . . 7 . 1 . . . . 2 10 Weapon 20 | . . 4 . . 2 . . 6 . 1 2 . . . 3 2 Highest Loss Streak 11 | . . 2 . . 1 . . 10 1 1 1 . . . 2 11 To Critical Strikes . | . . . . . . . . . . . . . . . . . Average Backups 13 | 2 8 11 12 11 11 12 13 17 19 13 13 11 12 12 10 11 Power . | . . . 1 . 1 1 1 1 1 . . . . . . . Propulsion 1 | 1 3 3 3 2 1 2 2 . . 1 2 1 1 1 1 1 Utility 5 | . . . 1 1 3 3 4 10 13 8 7 5 6 6 5 5 Weapon 3 | . 5 5 5 3 3 4 4 2 3 2 2 4 4 3 2 2 Tool/Special . | . . . . . . . . . . . . . . . . . Unused Backups 95 | . 4 5 . 4 8 . . 2 27 4 2 16 . 1 13 9 Power 10 | . 1 . . 1 2 . . . 4 . . . . 1 1 . Propulsion 22 | . 2 1 . . 3 . . . 6 1 1 3 . . 2 3 Utility 37 | . . . . . 1 . . 2 12 3 1 9 . . 7 2 Weapon 24 | . 1 4 . 1 2 . . . 5 . . 4 . . 3 4 Tool/Special 2 | . . . . 2 . . . . . . . . . . . . Average Slot Usage (%) 87 | . 100 91 100 93 79 95 92 78 86 98 90 80 79 82 77 76 Engine 4 | . 14 13 14 14 . . . . . 4 4 . . . . . Core 3 | . . . . . 4 6 6 4 6 5 3 11 11 11 5 . Treads 9 | . 28 28 28 24 2 . . . . . . 4 5 5 5 8 Leg 9 | . . . . 1 12 18 18 12 15 23 18 . . . . 1 Device 14 | . 14 6 14 8 11 14 12 18 20 23 25 17 17 22 20 15 Storage 7 | . 14 13 14 14 4 6 6 6 6 5 5 5 5 5 5 4 Processor 11 | . . . . . 23 27 25 14 13 10 6 11 11 11 14 14 Protection 2 | . . . . . . 3 5 2 5 . . 5 5 . 5 3 Energy Gun 5 | . . 11 14 14 1 . . 4 6 8 2 . . 4 2 . Energy Cannon 2 | . . 3 . . 5 9 11 1 . . . . . . . 6 Ballistic Gun 5 | . 14 11 14 14 2 . . . 5 3 1 11 12 11 8 1 Ballistic Cannon 1 | . . . . . 3 6 6 . . . 2 . . . . 3 Launcher 2 | . 13 1 . . . . . 5 3 2 4 . . . . . Peak Build Rating 152 | 7 9 16 16 21 103 83 85 109 97 105 106 112 109 110 128 152 Average Rating 70 | 5 8 12 16 16 86 80 82 80 92 100 98 106 105 109 117 127 On Entrance 65 | . 7 9 16 16 21 77 82 85 94 93 94 97 100 109 110 96 Naked Turns . | . . . . . . . . . . . . . . . . . Heaviest Build 128 | 15 32 37 35 35 108 128 128 128 122 68 79 76 78 78 84 123 Greatest Support 155 | 40 40 40 40 40 92 54 54 68 68 91 91 40 20 20 80 155 Greatest Overweight (x) 10 | . . . . 10 3 2 2 6 2 . 3 3 3 3 4 4 Average Overweight (x) . | . . . . . . 1 2 2 1 . . 2 3 3 2 . Largest Inventory Capacity 25 | 8 15 15 15 15 25 25 25 25 25 15 15 15 15 15 15 15 Average Capacity 18 | 7 14 14 15 15 15 24 25 25 24 15 15 15 15 15 15 14 Most Carried 25 | 4 14 15 15 15 16 17 21 25 25 15 15 15 15 15 15 15 Average Carried 16 | 2 8 14 15 14 14 16 17 21 22 14 14 14 14 14 14 13 Final Capacity 25 | 8 15 15 15 15 15 25 25 25 15 15 15 15 15 15 15 5 Final Carried 25 | 4 14 15 15 15 15 16 21 25 15 15 15 15 15 15 14 4 Class Distribution -------------------- 34% | Mutant 16% | Skirmisher 12% | Scavenger-Mutant 7% | Gunner 7% | Scavenger-Gunner 4% | Scavenger-Scrapper 4% | Scavenger-Skirmisher 4% | Scavenger-Tank 3% | Assassin Dominant Class ---------------- Mutant | -10/Materials Mutant | -10/Subcaves Scavenger-Mutant | -9/Recycling Scavenger-Mutant | -9/Scraptown Skirmisher | -6/Factory Skirmisher | -6/Lower Caves Skirmisher | -6/Zion Mutant | -6/Deep Caves Scavenger-Gunner | -5/Proximity Caves Scavenger-Skirmisher | -5/Factory Scavenger-Gunner | -5/Extension Scavenger-Scrapper | -5/Cetus Scavenger-Scrapper | -5/Archives Scavenger-Scrapper | -5/Hub_04(d) Scavenger-Scrapper | -4/Factory Scavenger-Tank | -4/Armory Resources | -11 -10 -10 -9 -9 -6 -6 -6 -6 -5 -5 -5 -5 -5 -5 -4 -4 ----------- Run | Yrd Mat Sub Rec Scr Fac Low Zio Dee Pro Fac Ext Cet Arc Hub Fac Arm Matter Collected 7981 | 288 193 625 13 . 1082 157 61 915 1099 497 673 236 90 350 463 1239 Remotely . | . . . . . . . . . . . . . . . . . Salvage Created 11644 | 92 353 729 97 . 1985 107 . 202 1340 1018 1216 616 . 798 920 2171 Parts 671 | 3 25 54 7 . 108 2 . 40 67 49 67 42 . 44 66 97 Haulers Intercepted 5 | . 2 . . . 2 . . . 1 . . . . . . . Recyclers Shooed 5 | . 1 . . . 1 . . . 1 . . . . . 2 . Parts Field Recycled . | . . . . . . . . . . . . . . . . . Retrieved Matter . | . . . . . . . . . . . . . . . . . Parts Self-Destructed 88 | . . 19 . . . 2 . . 67 . . . . . . . Prevented 3 | . . . . . . . . . 3 . . . . . . . Kills | -11 -10 -10 -9 -9 -6 -6 -6 -6 -5 -5 -5 -5 -5 -5 -4 -4 ------- Run | Yrd Mat Sub Rec Scr Fac Low Zio Dee Pro Fac Ext Cet Arc Hub Fac Arm Combat Hostiles Destroyed 204 | . 10 22 2 . 33 3 . 18 13 18 12 5 . 14 8 46 Melee 4 | . . . . . 3 . . . . . . . . . . 1 Guns 55 | . . 11 2 . 6 . . . 1 10 4 5 . 9 7 . Cannons 67 | . . 6 . . 19 3 . . . . 8 . . . 1 30 AOE 75 | . 10 4 . . 5 . . 18 12 8 . . . 5 . 13 Classes Destroyed 29 | 2 5 4 1 . 3 . . 2 6 . 2 1 . 1 . 2 Worker 19 | . 1 . . . 6 . . . . 3 . . . 3 6 . Builder 11 | . . . . . 3 . . . . 1 1 . . 3 3 . Tunneler 3 | 1 . . . . . . . . . . 1 . . 1 . . Hauler 5 | . 2 . . . 2 . . . 1 . . . . . . . Recycler 8 | 1 1 . . . 2 . . . 1 . 2 . . . 1 . Operator 3 | . 1 . . . 1 . . . . . 1 . . . . . Drone 2 | . . . . . . . . . 2 . . . . . . . Turret 1 | . . 1 . . . . . . . . . . . . . . Watcher 11 | . 3 . . . 3 . . . 2 . 1 1 . . . 1 Swarmer 25 | . . 4 . . 7 . . . . 2 3 . . . . 9 Saboteur 6 | . . . . . . . . . . . . . . 2 . 4 Grunt 68 | . 10 . . . 11 3 . . 9 8 3 . . 6 3 15 Brawler 8 | . . . . . 3 . . . 2 2 . . . 1 . . Duelist 6 | . . . . . . . . . 1 1 . . . 1 . 3 Sentry 18 | . . . 2 . 5 . . . . 2 3 . . 1 1 4 Demolisher 1 | . . . . . . . . . . . . . . . . 1 Specialist 2 | . . . . . . . . . 2 . . . . . . . Hunter 2 | . . . . . . . . . 1 . . . . . 1 . Programmer 25 | . . . . . 7 . . . . 3 . . . 3 3 9 Heavy 1 | . . . . . . . . . . . . . . . . 1 Behemoth 2 | . . . . . . . . . . . 2 . . . . . Cetus Guard 5 | . . . . . . . . . . . . 5 . . . . Enhanced Grunt 1 | . . . . . . . . . . . . . . 1 . . Artisan 1 | . . 1 . . . . . . . . . . . . . . Subdweller 18 | . . 18 . . . . . . . . . . . . . . Ranger 2 | . . . . . . . . . 2 . . . . . . . Scrapoid 4 | . . . . . . . . . . . 4 . . . . . Botcube 1 | . . . . . . . . . . . . 1 . . . . Z-Technician 3 | . . . . . . . . 3 . . . . . . . . Z-Light 8 | . . . . . . . . 8 . . . . . . . . Assembled 9 | . . . . . . . . 9 . . . . . . . . Thug 2 | . . . . . . . . . 1 . 1 . . . . . Savage 1 | . . . . . . . . . . . . 1 . . . . Mutant 1 | . . . . . . . . . 1 . . . . . . . Best Kill Streak 10 | 2 8 5 1 . 10 3 . 6 6 3 8 5 . 10 6 7 Combat Bots Only 8 | . 4 4 1 . 8 3 . 6 5 3 7 4 . 8 2 7 Max Kills in Single Turn 3 | 1 2 2 1 . 3 1 . 3 2 3 2 1 . 3 2 3 Gunslinging 1 | . . 1 . . . . . . . . . . . . . . Exploded 3 | . 2 2 . . 2 . . 3 2 2 . . . 1 . 3 Melee 1 | . . . . . 1 . . . . . . . . . . 1 Uniques/NPCs Destroyed 2 | . . . . . . . . 1 . . . 1 . . . . Z-Imprinter (-6/Deep Caves) A7 (-5/Cetus) Combat | -11 -10 -10 -9 -9 -6 -6 -6 -6 -5 -5 -5 -5 -5 -5 -4 -4 -------- Run | Yrd Mat Sub Rec Scr Fac Low Zio Dee Pro Fac Ext Cet Arc Hub Fac Arm Hostile Shots Fired 1394 | . 7 97 6 . 268 30 . 84 16 39 60 10 6 44 129 598 Missed 517 | . 5 25 2 . 97 8 . 31 7 9 21 3 4 12 43 250 Hits 877 | . 2 72 4 . 171 22 . 53 9 30 39 7 2 32 86 348 Melee 11 | . . . . . . . . 3 . . . . . . 1 7 Projectile 866 | . 2 72 4 . 171 22 . 50 9 30 39 7 2 32 85 341 AOE 2 | . . . . . . . . . . . . . . . . 2 Critical Strikes 47 | . . 3 . . 7 2 . . 2 4 3 3 1 . 3 19 Part Disruptions 1 | . . . . . . . . . . . . . . 1 . . Damage Taken 16942 | . 77 1592 63 . 2058 428 . 2070 337 791 682 121 95 766 1613 6249 Core 2275 | . . 203 14 . 238 54 . 318 34 100 55 14 . 83 115 1047 Absorbed by Shields 635 | . . . . . . . . . . 148 372 115 . . . . Reduced by Siege Mode 123 | . . . . . . . . . . . . 8 . . 13 102 Redirected to Shielding 83 | . . . . . . . . 83 . . . . . . . . Ignored by Resistances 143 | . . . . . 32 . . . . . . . . 111 . . Regen/Repaired (Parts) 96 | . . . . . 15 . . . . 70 . . . 11 . . Core Remaining (%) 52 | 100 . . . 13 . . . . 24 . . . . 74 . . Volleys Fired 731 | 3 20 91 5 . 79 10 . 49 98 64 85 15 7 37 52 116 Largest 3 | 2 1 2 2 . 3 3 . 3 2 3 3 3 2 3 3 3 Hottest 304 | 40 33 140 90 . 214 214 . 214 106 196 164 164 64 144 304 298 Shots Fired 1263 | 6 20 155 10 . 204 32 . 54 107 91 93 44 13 83 83 268 Gun 552 | 6 . 105 10 . 56 . . 9 42 83 31 44 13 77 75 1 Cannon 530 | . . 46 . . 143 32 . 9 . . 30 . . . 6 264 Launcher 106 | . 20 4 . . 5 . . 35 17 8 6 . . 6 2 3 Special 75 | . . . . . . . . 1 48 . 26 . . . . . Kinetic 542 | 6 . 64 5 . 98 10 . 8 11 31 38 40 13 59 68 91 Thermal 620 | . . 87 5 . 102 22 . 17 78 52 48 4 . 18 13 174 Explosive 96 | . 20 4 . . 2 . . 28 17 8 6 . . 6 2 3 Electromagnetic 2 | . . . . . 2 . . . . . . . . . . . Robot Hit Streak 28 | 4 5 28 28 . 13 7 . 8 13 8 13 12 4 8 10 14 Robot Miss Streak 6 | 1 1 2 1 . 6 6 . 6 2 2 4 1 2 5 4 4 Penetration Max 2 | . . . . . . . . . . . 1 1 2 2 2 . Secondary Targets 8 | . . 2 . . . . . . . . 1 3 . 2 . . Max Gunslinging Chain 1 | . . 1 . . . . . . . . 1 1 . 1 . . Shots Hit Robots 727 | 4 6 97 8 . 131 18 . 21 68 40 69 47 8 39 53 118 Core Hits 626 | 3 29 38 2 . 122 14 . 52 60 59 56 25 5 48 43 70 Critical Kills 15 | . . 1 . . 1 . . . . 4 . 3 . 2 2 2 Critical Parts Destroyed 14 | . . 1 . . 1 . . . 1 1 1 4 . 2 3 . Critical Strikes 43 | . . 3 . . 3 . . . 1 6 3 10 1 4 6 6 Burn 1 | . . . . . . . . . . . 1 . . . . . Meltdown 4 | . . 1 . . 1 . . . . . . . . . . 2 Destroy 29 | . . 2 . . 1 . . . 1 6 2 7 1 4 5 . Blast 5 | . . . . . . . . . . . . . . . 1 4 Impale 4 | . . . . . 1 . . . . . . 3 . . . . Melee Attacks 68 | . . . . . 28 . . . . . 9 17 . . 5 9 Impact . | . . . . . . . . . . . . . . . . . Slashing . | . . . . . . . . . . . . . . . . . Piercing 68 | . . . . . 28 . . . . . 9 17 . . 5 9 Sneak Attacks 30 | . . . . . 2 . . . . . 9 17 . . 2 . Combat Hostiles . | . . . . . . . . . . . . . . . . . Follow-up Attacks . | . . . . . . . . . . . . . . . . . Damage Inflicted 35747 | 61 1395 2428 205 . 4562 534 . 2510 3379 2322 3937 1980 362 2634 2603 6835 Guns 9746 | 61 . 1405 173 . 879 . . 270 944 831 658 991 362 1542 1630 . Cannons 11500 | . . 770 . . 2322 534 . 70 . . 1871 . . . 307 5626 Explosions 11538 | . 1395 253 . . 690 . . 2170 2206 1437 640 . . 1089 475 1183 Melee 2370 | . . . . . 615 . . . . . 590 989 . . 176 . Ramming 194 | . . . 32 . 56 . . . . 54 8 . . 3 15 26 Kinetic 11762 | 61 . 779 91 . 2244 246 . 302 96 116 2061 961 362 1118 1637 1688 Thermal 11210 | . . 1396 82 . 1481 288 . 326 1077 779 898 30 . 424 491 3938 Explosive 10098 | . 1395 253 . . 166 . . 1882 2206 1293 380 . . 1056 284 1183 Electromagnetic 113 | . . . . . . . . . . 80 . . . 33 . . Impact . | . . . . . . . . . . . . . . . . . Slashing . | . . . . . . . . . . . . . . . . . Piercing 2370 | . . . . . 615 . . . . . 590 989 . . 176 . Highest Corruption 8 | . . . . . 4 4 4 8 8 1 1 1 1 4 3 7 Average Corruption 4 | . . . . . 3 4 4 7 8 1 1 1 1 1 2 4 Corruption Purged . | . . . . . . . . . . . . . . . . . Corruption Blocked . | . . . . . . . . . . . . . . . . . Effects 357 | . . . . . 36 13 2 91 126 11 4 5 1 5 13 50 Message Errors 89 | . . . . . 7 2 . 26 33 3 2 1 . 2 3 10 Matter Fused 86 | . . . . . 10 2 . 21 33 4 . 1 1 . 1 13 Heat Flow Errors 37 | . . . . . 4 1 . 10 13 1 . 1 . . 3 4 Energy Discharges 48 | . . . . . 3 3 1 13 15 . . . . 1 2 10 Parts Rejected 5 | . . . . . . . . . . 1 . . . . 1 3 Parts Fused 6 | . . . . . 1 . . 2 2 . 1 . . . . . Data Loss (minor) 40 | . . . . . 3 1 1 10 12 1 1 2 . 1 3 5 Data Loss (major) 21 | . . . . . 6 . . 6 6 1 . . . . . 2 Misfires 12 | . . . . . 2 2 . 1 6 . . . . . . 1 Alerts 9 | . . . . . . 2 . 1 4 . . . . 1 . 1 Weapon Failures 4 | . . . . . . . . 1 2 . . . . . . 1 Overload Shots 1 | . . . . . . . . . . . . . . . 1 . Overflow Damage 698 | . . 3 . . 91 . . 33 97 12 98 24 . 7 97 236 Projectiles 241 | . . . . . 28 . . . . . 22 . . . . 191 Explosions 367 | . . 3 . . 33 . . 33 97 12 76 . . 7 61 45 Melee 90 | . . . . . 30 . . . . . . 24 . . 36 . Knockbacks 47 | . . . . . 29 . . . . . 5 . . . 1 12 Impact 1 | . . . . . 1 . . . . . . . . . . . Kinetic 43 | . . . . . 26 . . . . . 5 . . . 1 11 Secondary 3 | . . . . . 2 . . . . . . . . . . 1 Self-Inflicted Damage 495 | . . 19 . . . . . 133 124 . 108 . . 100 . 11 Shots 11 | . . 1 . . . . . 3 3 . 3 . . 1 . . Rammed 13 | . . . 5 . . . . . . . . . . 1 1 6 Targets Rammed 23 | . . . 5 . 6 . . . . 3 1 . . 1 1 6 Kicked 10 | . . . . . 6 . . . . 3 1 . . . . . Crushed . | . . . . . . . . . . . . . . . . . Highest Temperature 388 | . 5 42 78 . 302 271 . 332 232 192 242 252 . 111 224 388 Average Temperature 91 | . 3 9 37 . 94 159 . 116 99 44 48 49 . 36 76 121 Received Heat Transfer 2773 | . 18 291 18 . 555 184 . 454 75 133 103 . . 132 214 596 Effects 10 | . . . . . 6 . . . . . . . . . . 4 Shutdowns 2 | . . . . . . . . . . . . . . . . 2 Energy Bleed 1 | . . . . . 1 . . . . . . . . . . . Interference 7 | . . . . . 5 . . . . . . . . . . 2 Siege Activations 5 | . . . . . . . . . . . . 1 . . 2 2 Total Turns 90 | . . . . . . . . . . . . 14 . . 26 50 Longest Duration 25 | . . . . . . . . . . . . 14 . . 18 25 Martial Activations . | . . . . . . . . . . . . . . . . . Shielding Activations . | . . . . . . . . . . . . . . . . . Robots Disrupted 1 | . . . . . . . . . . 1 . . . . . . Combat Hostiles . | . . . . . . . . . . . . . . . . . Robots Corrupted . | . . . . . . . . . . . . . . . . . Combat Hostiles . | . . . . . . . . . . . . . . . . . Parts Fried 1 | . . . . . . . . . . . 1 . . . . . Impact Corruptions . | . . . . . . . . . . . . . . . . . Robots Melted 4 | . . 1 . . 1 . . . . . . . . . . 2 Combat Hostiles 3 | . . 1 . . . . . . . . . . . . . 2 Parts Melted 21 | . . 4 . . 3 . . . . 1 2 . . 1 2 8 Heat Transferred 12882 | . . 1800 100 . 2336 500 . 320 1750 901 980 50 . 444 408 3293 Parts Sabotaged 2 | . . . . . . . . . . . . . . . 2 . Parts Stolen . | . . . . . . . . . . . . . . . . . Parts Stripped . | . . . . . . . . . . . . . . . . . Power Chain Reactions 1 | . . . . . . . . . . 1 . . . . . . Alert | -11 -10 -10 -9 -9 -6 -6 -6 -6 -5 -5 -5 -5 -5 -5 -4 -4 ------- Run | Yrd Mat Sub Rec Scr Fac Low Zio Dee Pro Fac Ext Cet Arc Hub Fac Arm Maximum Alert Level 5 | . 1 . . . 3 . . . . 4 3 3 1 4 4 5 Low Security (%) 32 | 100 55 . 100 . 49 . . . . 45 . . . 27 . . Level 1 13 | . 44 . . . 10 . . . . 6 36 . 100 1 . . Level 2 23 | . . . . . 20 . . . . 24 21 73 . 16 8 49 Level 3 21 | . . . . . 19 . . . . 10 42 26 . 39 79 17 Level 4 6 | . . . . . . . . . . 13 . . . 14 11 18 Level 5 . | . . . . . . . . . . . . . . . . 2 High Security 1 | . . . . . . . . . . . . . . . . 11 Max Security . | . . . . . . . . . . . . . . . . . Peak Influence 2012 | 5 319 . 66 . 825 . . . . 1252 924 783 382 1425 1217 2012 Initial 697 | . . . 58 . . . . . . . 610 474 225 126 697 570 Average 492 | . 161 . 29 . 335 . . . . 413 572 653 328 634 946 925 Influence Increases 11303 | 10 596 190 190 . 1258 70 . . 294 1856 1404 391 217 1569 922 2336 Destroy 0b10 Robot/C 5340 | . 200 100 40 . 660 60 . . 240 900 720 160 80 560 420 1200 Destroy 0b10 Robot/NC 425 | 10 40 . . . 80 . . . 30 35 60 10 . 65 80 15 Destroy Leader 980 | . 60 . . . 180 10 . . 20 214 74 . . 112 94 216 Allied During Kill 1256 | . . . . . . . . . 4 126 360 150 80 331 60 145 Successful Hack 141 | . 17 . 30 . 72 . . . . 3 5 9 . . . 5 Select Force Hacks 180 | . 60 . 120 . . . . . . . . . . . . . Disable Machine 930 | . 120 . . . 180 . . . . 240 15 . 45 60 90 180 Destroy Structure 1631 | . 99 . . . 86 . . . . 338 170 62 12 366 178 320 Partial Spotted 30 | . . . . . . . . . . . . . . 15 . 15 Lose Combat Pursuer 390 | . . 90 . . . . . . . . . . . 60 . 240 Influence Decreases 9291 | 10 398 265 289 24 451 514 363 . 294 610 1802 676 418 506 1182 1489 Entered New Map 3755 | . . 96 65 24 . 300 363 . . . 636 374 338 236 728 595 Time Decay 4096 | 10 398 169 224 . 401 214 . . 274 440 486 302 40 190 374 574 Lost Part 300 | . . . . . 40 . . . . 20 20 . . . 60 160 Lost Ally 390 | . . . . . 10 . . . 20 . 60 . 40 80 20 160 Purge Threat 750 | . . . . . . . . . . 150 600 . . . . . Squads Dispatched 72 | . 3 . . . 11 . . . 1 16 3 . . 11 6 21 Investigation 19 | . 3 . . . 6 . . . 1 3 1 . . . 3 2 Extermination 17 | . . . . . 5 . . . . 4 . . . 1 2 5 Reinforcement 11 | . . . . . . . . . . 1 1 . . 5 . 4 Assault 16 | . . . . . . . . . . 2 1 . . 2 1 10 Garrison 9 | . . . . . . . . . . 6 . . . 3 . . Intercept . | . . . . . . . . . . . . . . . . . Searches Triggered . | . . . . . . . . . . . . . . . . . Construction Impeded 4 | . . . . . . . . . . 1 1 . . 2 . . Haulers Reinforced 1 | . . . . . . . . . . . . . . 1 . . Active Scanning Responses . | . . . . . . . . . . . . . . . . . Cargo Convoy Interrupts 1 | . . . . . . . . . . . . . . . 1 . Stealth | -11 -10 -10 -9 -9 -6 -6 -6 -6 -5 -5 -5 -5 -5 -5 -4 -4 --------- Run | Yrd Mat Sub Rec Scr Fac Low Zio Dee Pro Fac Ext Cet Arc Hub Fac Arm Distress Signals 27 | . 1 . . . 5 . . . 2 2 3 2 . 1 3 8 Communications Jammed . | . . . . . . . . . . . . . . . . . Distress Signals . | . . . . . . . . . . . . . . . . . Times Spotted 383 | . 12 24 1 . 50 3 . 15 17 39 34 9 6 37 49 87 Peak Tracking Total 17 | . 5 3 1 . 5 3 . 5 4 5 6 5 2 9 15 17 Tactical Retreats 11 | . . 1 . . . . . . . . . . . 3 . 7 Traps | -11 -10 -10 -9 -9 -6 -6 -6 -6 -5 -5 -5 -5 -5 -5 -4 -4 ------- Run | Yrd Mat Sub Rec Scr Fac Low Zio Dee Pro Fac Ext Cet Arc Hub Fac Arm Traps Triggered 16 | . 2 3 . . . . . . . 2 5 . . . . 4 Indirectly . | . . . . . . . . . . . . . . . . . Trap Hack Attempts . | . . . . . . . . . . . . . . . . . Triggered . | . . . . . . . . . . . . . . . . . Disarmed . | . . . . . . . . . . . . . . . . . Reprogrammed . | . . . . . . . . . . . . . . . . . Reused . | . . . . . . . . . . . . . . . . . Traps Extracted . | . . . . . . . . . . . . . . . . . Installed . | . . . . . . . . . . . . . . . . . Triggered . | . . . . . . . . . . . . . . . . . Machines | -11 -10 -10 -9 -9 -6 -6 -6 -6 -5 -5 -5 -5 -5 -5 -4 -4 ---------- Run | Yrd Mat Sub Rec Scr Fac Low Zio Dee Pro Fac Ext Cet Arc Hub Fac Arm Machines Disabled 72 | . 8 5 . . 12 . . 2 1 16 3 . 3 4 6 12 Max in Single Turn 4 | . 3 3 . . 3 . . 1 1 4 1 . 1 3 2 2 Garrison Access 2 | . . . . . 2 . . . . . . . . . . . Network Hub 1 | . . . . . . . . . . . . . . 1 . . Energy Cycler 1 | . . . . . . . . . . . 1 . . . . . Machines Repaired 1 | . . . . . . . . . . 1 . . . . . . Machines Dismantled . | . . . . . . . . . . . . . . . . . Machines Sabotaged . | . . . . . . . . . . . . . . . . . Overloaded Fab Kills . | . . . . . . . . . . . . . . . . . Hacking | -11 -10 -10 -9 -9 -6 -6 -6 -6 -5 -5 -5 -5 -5 -5 -4 -4 --------- Run | Yrd Mat Sub Rec Scr Fac Low Zio Dee Pro Fac Ext Cet Arc Hub Fac Arm Machines Accessed 64 | . 9 2 8 2 20 . 1 . 3 8 4 1 . . 3 3 Terminals 32 | . 7 . 4 . 12 . . . 1 3 3 1 . . . 1 Fabricators 3 | . . . . . 1 . . . 1 . . . . . . 1 Repair Stations 2 | . . . . . . . . . . 2 . . . . . . Recycling Units 20 | . 2 . 4 . 5 . . . 1 3 1 . . . 3 1 Scanalyzers . | . . . . . . . . . . . . . . . . . Garrison Access 2 | . . . . . 2 . . . . . . . . . . . Total Hacks 145 | . 21 5 19 7 46 . 7 . 6 11 8 1 . . 6 8 Successful 79 | . 14 5 14 7 15 . 7 . 1 5 4 1 . . 3 3 Failed 65 | . 6 . 5 . 31 . . . 5 6 4 . . . 3 5 Catastrophic 7 | . . . . . 6 . . . . 1 . . . . . . Database Lockouts 1 | . 1 . . . . . . . . . . . . . . . Manual 96 | . 18 . 17 . 36 . 4 . 2 5 2 1 . . 6 5 Terminals 80 | . 19 . 15 . 28 . . . 3 4 7 1 . . . 3 Fabricators 6 | . . . . . 2 . . . 1 . . . . . . 3 Repair Stations 3 | . . . . . . . . . . 3 . . . . . . Recycling Units 34 | . 2 . 4 . 13 . . . 2 4 1 . . . 6 2 Scanalyzers . | . . . . . . . . . . . . . . . . . Garrison Access 3 | . . . . . 3 . . . . . . . . . . . Terminal Hacks 35 | . 4 5 5 7 1 . 7 . 1 1 3 1 . . . . Record 5 | . . 4 . 1 . . . . . . . . . . . . Part Schematic 10 | . . . 3 . . . 7 . . . . . . . . . Robot Analysis 8 | . 2 . . 6 . . . . . . . . . . . . Open Door 5 | . . . . . . . . . 1 1 2 1 . . . . Terminal Index 1 | . 1 . . . . . . . . . . . . . . . Alert Level 1 | . . . . . . . . . . . 1 . . . . . Hauler Manifests 2 | . . . 1 . 1 . . . . . . . . . . . Zone Layout 2 | . 1 . 1 . . . . . . . . . . . . . Proto ID Catalog 1 | . . 1 . . . . . . . . . . . . . . Fabricator Hacks . | . . . . . . . . . . . . . . . . . Repair Station Hacks 2 | . . . . . . . . . . 2 . . . . . . Scan Component 1 | . . . . . . . . . . 1 . . . . . . Repair 1 | . . . . . . . . . . 1 . . . . . . Recycling Unit Hacks . | . . . . . . . . . . . . . . . . . Scanalyzer . | . . . . . . . . . . . . . . . . . Garrison Access Hacks 2 | . . . . . 2 . . . . . . . . . . . Seal Access 2 | . . . . . 2 . . . . . . . . . . . Unauthorized Hacks 40 | . 10 . 9 . 12 . . . . 2 1 . . . 3 3 Terminals 21 | . 8 . 5 . 8 . . . . . . . . . . . Assimilate 2 | . . . . . 2 . . . . . . . . . . . Botnet 7 | . 3 . 2 . 2 . . . . . . . . . . . Skim 12 | . 5 . 3 . 4 . . . . . . . . . . . Fabricators 3 | . . . . . 1 . . . . . . . . . . 2 Liberate 1 | . . . . . . . . . . . . . . . . 1 Haulers 2 | . . . . . 1 . . . . . . . . . . 1 Repair Stations . | . . . . . . . . . . . . . . . . . Recycling Units 16 | . 2 . 4 . 3 . . . . 2 1 . . . 3 1 Tunnel 6 | . 2 . 4 . . . . . . . . . . . . . Fedlink 9 | . . . . . 3 . . . . 2 . . . . 3 1 Scrapoids 1 | . . . . . . . . . . . 1 . . . . . Scanalyzers . | . . . . . . . . . . . . . . . . . Garrison Access . | . . . . . . . . . . . . . . . . . Data Cores Recovered 3 | . 1 . . . . . . . . . 2 . . . . . Used 1 | . 1 . . . . . . . . . . . . . . . Hacking Detections 40 | . 5 . 4 . 18 . . . 3 6 1 . . . 1 2 Full Trace Events 5 | . . . . . 3 . . . 1 1 . . . . . . Feedback Events . | . . . . . . . . . . . . . . . . . Feedback Blocked . | . . . . . . . . . . . . . . . . . Robot Schematics Acquired . | . . . . . . . . . . . . . . . . . Robots Built . | . . . . . . . . . . . . . . . . . Authchips . | . . . . . . . . . . . . . . . . . Time . | . . . . . . . . . . . . . . . . . Total Robot Build Rating . | . . . . . . . . . . . . . . . . . Part Schematics Acquired 10 | . . . 3 . . . 7 . . . . . . . . . Parts Built . | . . . . . . . . . . . . . . . . . Authchips . | . . . . . . . . . . . . . . . . . Time . | . . . . . . . . . . . . . . . . . Total Part Build Rating . | . . . . . . . . . . . . . . . . . Parts Repaired 1 | . . . . . . . . . . 1 . . . . . . Time 50 | . . . . . . . . . . 50 . . . . . . Parts Recycled . | . . . . . . . . . . . . . . . . . Recycled Matter . | . . . . . . . . . . . . . . . . . Retrieved Matter . | . . . . . . . . . . . . . . . . . Retrieved Components . | . . . . . . . . . . . . . . . . . Parts Scanalyzed . | . . . . . . . . . . . . . . . . . Part Schematics Acquired . | . . . . . . . . . . . . . . . . . Parts Damaged . | . . . . . . . . . . . . . . . . . Bothacking | -11 -10 -10 -9 -9 -6 -6 -6 -6 -5 -5 -5 -5 -5 -5 -4 -4 ------------ Run | Yrd Mat Sub Rec Scr Fac Low Zio Dee Pro Fac Ext Cet Arc Hub Fac Arm Used RIF Installer . | . . . . . . . . . . . . . . . . . Robots Hacked . | . . . . . . . . . . . . . . . . . Non-combat . | . . . . . . . . . . . . . . . . . Combat . | . . . . . . . . . . . . . . . . . Robot Hacks Applied . | . . . . . . . . . . . . . . . . . Relay Couplers Released . | . . . . . . . . . . . . . . . . . Fabnet Peak Effective % . | . . . . . . . . . . . . . . . . . Robots Rewired 20 | . . . . . . . . . 6 . 6 . . . . 8 Allies Hacked . | . . . . . . . . . . . . . . . . . Hacks Repelled . | . . . . . . . . . . . . . . . . . Allies | -11 -10 -10 -9 -9 -6 -6 -6 -6 -5 -5 -5 -5 -5 -5 -4 -4 -------- Run | Yrd Mat Sub Rec Scr Fac Low Zio Dee Pro Fac Ext Cet Arc Hub Fac Arm Total Allies 39 | . . . . . 2 . . . 7 1 15 6 . . . 8 Largest Group 13 | . . . . . 1 . . . 6 2 13 13 10 8 1 4 Highest-Rated Group 962 | . . . . . 10 . . . 202 157 687 962 764 719 155 192 Highest-Rated Ally 161 | . . . . . 10 . . . 128 129 159 161 161 161 155 48 Total Orders 31 | . . . . . . . . 1 3 5 5 9 . 4 3 1 STAY 15 | . . . . . . . . . 2 1 3 4 . 2 2 1 ROAM 1 | . . . . . . . . . . . . . . 1 . . FOLLOW 9 | . . . . . . . . . 1 1 . 5 . 1 1 . RETURN 6 | . . . . . . . . 1 . 3 2 . . . . . Ally Attacks 444 | . . . . . . . . . 14 69 121 25 34 46 41 94 Total Damage 12643 | . . . . . . . . . 228 1154 2314 539 1086 2589 2403 2330 Kills 124 | . . . . . . . . . 1 30 30 4 4 20 19 16 Allies Corrupted 2 | . . . . . 1 . . . . . . . . . . 1 Allies Melted 1 | . . . . . . . . . . 1 . . . . . . Intel | -11 -10 -10 -9 -9 -6 -6 -6 -6 -5 -5 -5 -5 -5 -5 -4 -4 ------- Run | Yrd Mat Sub Rec Scr Fac Low Zio Dee Pro Fac Ext Cet Arc Hub Fac Arm Active Infowar (turns) 13222 | 38 1488 718 . . 2939 441 3142 603 79 1661 323 . . . 834 956 Optics 2539 | . . 198 . . 2210 131 . . . . . . . . . . Sensors 9003 | . . . . . 2066 441 3142 509 79 1661 323 . . . 782 . Terrain 1207 | . . . . . . . . . . . . . . . 816 391 Seismic 2045 | 38 1488 519 . . . . . . . . . . . . . . Machine Analysis 6719 | . . . . . 2939 441 3142 197 . . . . . . . . Cloaking 854 | . . . . . . . . . . . . . . . . 854 Jamming 586 | . . . . . 419 1 . 166 . . . . . . . . ECM 1 | . . 1 . . . . . . . . . . . . . . Robot Analysis Total 8 | . 2 . . 6 . . . . . . . . . . . . Derelict Logs Recovered 11 | . . 2 . 5 . . 2 . 2 . . . . . . . Drone Launches 6 | . . . . . . . . 1 . 3 2 . . . . . Drone Recoveries 6 | . . . . . . . . 1 . 3 2 . . . . . Exploration | -11 -10 -10 -9 -9 -6 -6 -6 -6 -5 -5 -5 -5 -5 -5 -4 -4 ------------- Run | Yrd Mat Sub Rec Scr Fac Low Zio Dee Pro Fac Ext Cet Arc Hub Fac Arm Turns Passed 30142 | 128 1488 4317 630 2401 3218 441 3142 3072 4080 1952 1275 678 90 384 862 1984 Spaces Moved 14731 | 68 774 2099 378 1384 1982 150 1177 1023 1406 1265 693 436 45 212 610 1029 Core 312 | 3 . . . 34 . . . . . . . . . . . 275 Treads 5346 | 65 774 2099 378 1288 . . . . . . . . . . 12 730 Legs 7350 | . . . . 19 1982 150 1177 817 1406 1265 534 . . . . . Wheels 1514 | . . . . 43 . . . . . . 159 436 45 212 598 21 Hover 209 | . . . . . . . . 206 . . . . . . . 3 Flight . | . . . . . . . . . . . . . . . . . Fastest Speed 50 | 50 160 160 160 120 90 126 266 122 113 115 80 80 100 100 90 50 Average Speed 168 | 155 160 160 160 171 124 264 266 269 250 115 109 98 100 100 98 127 Slowest Speed 550 | 160 160 160 160 550 340 266 266 510 310 115 120 100 100 100 160 240 Overloaded Moves . | . . . . . . . . . . . . . . . . . Propulsion Burnouts . | . . . . . . . . . . . . . . . . . Robots Hopped . | . . . . . . . . . . . . . . . . . Potential Cave-ins . | . . . . . . . . . . . . . . . . . Cave-ins Triggered 1 | . . . . . . . . 1 . . . . . . . . Exploration Rate (%) 58 | 4 99 69 88 89 51 23 85 76 67 27 82 66 66 24 15 71 Regions Visited 16 Branch Regions 12 Pre-discovered Areas 10 | . 4 . 4 1 1 . . . . . . . . . . . Known Exits Taken 5 | . 1 . . . . 1 1 1 1 . . . . . . . Unknown Exits Taken 11 | 1 . 1 1 1 1 . . . . 1 1 1 1 1 1 . Scrap Searched 16 | . . 7 . 3 . . 1 . 5 . . . . . . . Spaces Dug 333 | . 44 14 . . 25 . . 83 67 5 55 . . 13 6 21 Terrain Destroyed 1420 | . 109 32 . . 91 6 . 238 176 213 89 8 5 236 59 158 Melee 14 | . . . . . 9 . . . . . . . . . 2 3 Projectile 269 | . . 3 . . 26 6 . 3 3 18 15 8 5 49 36 97 AOE 1136 | . 109 29 . . 56 . . 235 173 194 74 . . 187 21 58 Terrain Rammed . | . . . . . . . . . . . . . . . . . Walls Destroyed . | . . . . . . . . . . . . . . . . . Machines Disabled . | . . . . . . . . . . . . . . . . . Actions | -11 -10 -10 -9 -9 -6 -6 -6 -6 -5 -5 -5 -5 -5 -5 -4 -4 --------- Run | Yrd Mat Sub Rec Scr Fac Low Zio Dee Pro Fac Ext Cet Arc Hub Fac Arm Total 19042 | 81 1005 2908 391 1410 2506 173 1189 1279 1889 1707 1139 650 83 342 814 1476 Wait 2307 | . 190 567 2 . 313 3 . 131 149 319 227 94 29 86 111 86 Move 14715 | 67 773 2098 377 1383 1981 149 1176 1022 1405 1264 692 435 44 211 609 1029 Hop . | . . . . . . . . . . . . . . . . . Pick Up 282 | 4 14 71 . 10 22 2 5 24 46 14 4 38 . 1 6 21 Fast Attach 129 | 7 . 10 . 1 18 2 4 10 11 6 21 3 1 1 10 24 Attach 88 | . . 14 . 1 12 1 . 21 7 3 7 . 1 . 6 15 Detach 29 | . . 6 . . 3 . . 3 4 1 2 . 1 . 1 8 Swap 91 | . 3 15 1 3 13 2 . 7 4 10 7 3 . 3 1 19 Drop 302 | . 5 31 1 12 30 4 4 12 61 17 25 45 . 2 12 41 Fire 731 | 3 20 91 5 . 79 10 . 49 98 64 85 15 7 37 52 116 Melee 68 | . . . . . 28 . . . . . 9 17 . . 5 9 Ram 7 | . . . . . . . . . . . . . . 1 . 6 Kick 10 | . . . . . 6 . . . . 3 1 . . . . . Crush 6 | . . . 5 . . . . . . . . . . . 1 . Escape Stasis 10 | . . . . . . . . . . 3 7 . . . . . Rewire 257 | . . . . . . . . . 103 . 52 . . . . 102 Trap . | . . . . . . . . . . . . . . . . . Miscellaneous 10 | . . 5 . . 1 . . . 1 3 . . . . . . Route ------- -11/Scrapyard -10/Materials (discovered 6 exits: [*Mat x3] / [*Min x2] / *Sub) -10/Subcaves (discovered 3 exits: [*Mat x2] / *Rec) -9/Recycling (discovered 2 exits: [*Fac] / *Scr) -9/Scraptown (discovered 2 exits: *Fac x2) -6/Factory (discovered 5 exits: *Fac x3 / [*Low x2]) -6/Lower Caves -6/Zion (discovered 2 exits: *Dee / [*Pro]) -6/Deep Caves -5/Proximity Caves -5/Factory (discovered 3 exits: *Upp x2 / *Ext) -5/Extension (discovered 3 exits: *Fac x2 / *Cet) -5/Cetus (discovered 2 exits: *Fac / [*Arc]) -5/Archives -5/Hub_04(d) -4/Factory (discovered 3 exits: [Res] / *Upp / *Arm) -4/Armory (discovered 1 exit: [*Res]) History --------- Turn | Location | Event 36 | -11/Scrapyard | Discovered new exit (range 15) 129 | -11/Scrapyard | Entered Materials 301 | -10/Materials | Build established: Mutant 398 | -10/Materials | Discovered new exit (range 14) 525 | -10/Materials | Central database locked down 532 | -10/Materials | Discovered new exit (range 15) 700 | -10/Materials | Discovered new exit (range 7) 790 | -10/Materials | Discovered new exit (range 12) 841 | -10/Materials | Discovered new exit (range 12) 1261 | -10/Materials | Identified exit to Subcaves 1261 | -10/Materials | Learned location of 1 exit from Materials 1296 | -10/Materials | Loaded intel: 8 trap records 1337 | -10/Materials | Learned Storage security intel 1375 | -10/Materials | Learned Storage emergency access door positions 1617 | -10/Materials | Entered Subcaves 1743 | -10/Subcaves | Visited 4L-MR0's lab 1930 | -10/Subcaves | Learned Materials terminal intel 2260 | -10/Subcaves | Discovered new exit (range 15) 2507 | -10/Subcaves | A Subdweller sparked back to life 2555 | -10/Subcaves | Found Arachnoskeleton 3359 | -10/Subcaves | Shifting Twisted Machinery released Flamer 3766 | -10/Subcaves | Learned 4 Materials zone layouts 3772 | -10/Subcaves | Shifting Twisted Machinery released Sub. Power Source 3803 | -10/Subcaves | Discovered new exit (range 12) 4115 | -10/Subcaves | Disturbed a concealed Subdweller 4123 | -10/Subcaves | Disturbed a concealed Subdweller 4125 | -10/Subcaves | Core integrity fell below 50% 4497 | -10/Subcaves | A swath of the cavern ceiling suddenly collapsed 4593 | -10/Subcaves | Discovered new exit (range 12) 4656 | -10/Subcaves | Visited Clippyterm 4661 | -10/Subcaves | Learned Factory emergency access door positions 5300 | -10/Subcaves | Found Meta Core 5475 | -10/Subcaves | Core integrity fell below 20% 5934 | -10/Subcaves | Entered Recycling 6074 | -9/Recycling | Discovered new exit (range 5) 6525 | -9/Recycling | Scanned before Scraplab entrance 6533 | -9/Recycling | Build established: Scavenger-Mutant 6560 | -9/Recycling | Discovered new exit (range 2) 6564 | -9/Recycling | Entered Scraptown 6801 | -9/Scraptown | Discovered new exit (range 11) 6924 | -9/Scraptown | Scanned Subdweller tech in exchange for log data 6928 | -9/Scraptown | Learned Factory trap positions 6929 | -9/Scraptown | Learned 12 Factory zone layouts 6931 | -9/Scraptown | Learned Research security intel 6932 | -9/Scraptown | Learned Factory terminal intel 6934 | -9/Scraptown | Learned location of Testing (-2) 6987 | -9/Scraptown | Visited Cyclists 7252 | -9/Scraptown | Visited Shadow of the Wyrm 7278 | -9/Scraptown | Visited Awakened 7350 | -9/Scraptown | Visited IN-MT5's Study 7380 | -9/Scraptown | Visited SPCMW 7400 | -9/Scraptown | Visited Spacefarers 7480 | -9/Scraptown | Visited UFD Registry 7480 | -9/Scraptown | Registered with UFD as "Beamranger" 7528 | -9/Scraptown | Visited Modified Component R&D 7619 | -9/Scraptown | Visited Supply Room 7651 | -9/Scraptown | Visited Scrapoid Research Area 7702 | -9/Scraptown | Visited Derelict Rescue Squad 7716 | -9/Scraptown | Visited Analyses Database 7750 | -9/Scraptown | Visited Scrap Suit Storage 7771 | -9/Scraptown | Visited Botcube Research 7827 | -9/Scraptown | Delivered Scrap Shield to a Scientist 8013 | -9/Scraptown | Visited Junk Repository 8037 | -9/Scraptown | Visited Science Guys 8059 | -9/Scraptown | Visited Infowarlord's Domain 8067 | -9/Scraptown | Found Exp. Terrain Scanner 8237 | -9/Scraptown | Build established: Mutant 8308 | -9/Scraptown | Found DRS Beacon 8318 | -9/Scraptown | Found DRS Beacon 8382 | -9/Scraptown | Found Lrg. Botcube 8652 | -9/Scraptown | Build established: Scavenger-Mutant 8700 | -9/Scraptown | Found Scrap Suit 8884 | -9/Scraptown | Met Optimus 8884 | -9/Scraptown | Accepted into 0bPrime 8963 | -9/Scraptown | Discovered new exit (range 3) 8965 | -9/Scraptown | Entered Factory 8965 | -6/Factory | Evolved 8 slots: Propulsion x1, Utility x6, Weapon x1 8966 | -6/Factory | Identified exit to Factory 8967 | -6/Factory | Loaded intel: 101 trap records 8968 | -6/Factory | Attached Meta Core, gained temporary slots: Propulsion, Utility, Weapon 8969 | -6/Factory | Loaded intel: 26 terminal locations 8969 | -6/Factory | Attached Arachnoskeleton, gained temporary slots: Propulsion x3 9279 | -6/Factory | Build established: Mutant 9467 | -6/Factory | Discovered exit to Factory (range 10) 9707 | -6/Factory | Build established: Assassin 10058 | -6/Factory | Loaded intel: 8 recycling unit locations 10122 | -6/Factory | Learned location of Protoforge (-3) 10495 | -6/Factory | Build established: Gunner 10695 | -6/Factory | Discovered exit to Factory (range 17) 10961 | -6/Factory | Destroyed 8 combat bots 11246 | -6/Factory | Build established: Skirmisher 11660 | -6/Factory | Discovered new exit (range 5) 11913 | -6/Factory | Discovered new exit (range 8) 12183 | -6/Factory | Entered Lower Caves 12185 | -6/Lower Caves | UFD Scientist delivered a prototype 12188 | -6/Lower Caves | Found Prototype Protection 12302 | -6/Lower Caves | Build established: Assassin 12323 | -6/Lower Caves | Identified Enh. Scrap Shield 12595 | -6/Lower Caves | A Derelict revealed a hidden shortcut to a safe place 12621 | -6/Lower Caves | Identified exit to Zion 12624 | -6/Lower Caves | Entered Zion 12664 | -6/Zion | Build established: Skirmisher 12708 | -6/Zion | System corruption cleaned by Quarantine Array 12852 | -6/Zion | Given the Hacking Drone Bay 12857 | -6/Zion | Discovered new exit (range 10) 13140 | -6/Zion | Found Prototype Device 13140 | -6/Zion | Identified Mobile Refinery Mk. CCLXVII 13180 | -6/Zion | Found GAL Module 13580 | -6/Zion | Turned away by Imprinter 13679 | -6/Zion | Acquired unknown access codes intercepted by a Zionite 13894 | -6/Zion | Identified exit to Deep Caves 14110 | -6/Zion | Found CR-A16's Pointy Stick 15322 | -6/Zion | Found Prototype Device 15718 | -6/Zion | Opened final containment barrier to the Deep Caves 15760 | -6/Zion | Saw the warning signs outside the Deep Caves entrance 15766 | -6/Zion | Entered Deep Caves 15963 | -6/Deep Caves | Crushed by falling debris 16186 | -6/Deep Caves | Attacked by Z-Imprinter 16190 | -6/Deep Caves | Core integrity fell below 50% 16210 | -6/Deep Caves | Identified Hacking Drone Bay 16240 | -6/Deep Caves | Destroyed Z-Imprinter 16266 | -6/Deep Caves | Lost 10 parts (3n2u5w) 16489 | -6/Deep Caves | Build established: Mutant 16756 | -6/Deep Caves | Found Prototype Protection 16756 | -6/Deep Caves | Identified Zio. Weapon Casing 16762 | -6/Deep Caves | Found Prototype Device 16762 | -6/Deep Caves | Identified Zio. Metafield Generator 16934 | -6/Deep Caves | Z-Facility disabled 16974 | -6/Deep Caves | Lost 6 parts (3n2u1w) 17742 | -6/Deep Caves | Found Prototype Protection 17749 | -6/Deep Caves | Identified Zio. Heavy Carapace 17791 | -6/Deep Caves | Found Zio. Weapon Casing 17796 | -6/Deep Caves | Found Zio. Heavy Carapace 17839 | -6/Deep Caves | Found Zio. Weapon Casing 18173 | -6/Deep Caves | Discovered new exit (range 6) 18183 | -6/Deep Caves | Identified exit to Proximity Caves 18838 | -6/Deep Caves | Entered Proximity Caves 18922 | -5/Proximity Caves | Activated DRS Beacon 18933 | -5/Proximity Caves | Found Imp. Powered Armor 19583 | -5/Proximity Caves | Learned Factory stockpile data 19932 | -5/Proximity Caves | Build established: Gunner 20526 | -5/Proximity Caves | Snuck into a huge 0b10 base via the rear entrance 20610 | -5/Proximity Caves | Derelicts attacked a huge 0b10 base 21120 | -5/Proximity Caves | Build established: Commander-Gunner 21604 | -5/Proximity Caves | Build established: Scavenger-Gunner 22502 | -5/Proximity Caves | Lrg. Botcube activated 22540 | -5/Proximity Caves | Lrg. Botcube completed mutation into legged form, armed with 4 guns. 22918 | -5/Proximity Caves | Entered Factory 22918 | -5/Factory | Accompanied by 2 allies 22918 | -5/Factory | Evolved 2 slots: Power x1, Propulsion x1 23397 | -5/Factory | Repaired Lrn. Missile Launcher 23506 | -5/Factory | Build established: Scavenger-Skirmisher 23706 | -5/Factory | Discovered new exit (range 16) 23744 | -5/Factory | Lrg. Botcube activated 23782 | -5/Factory | Lrg. Botcube completed mutation into legged form, armed with 4 guns. 23836 | -5/Factory | Loaded intel: 8 recycling unit locations 23914 | -5/Factory | Identified exit to Upper Caves 24115 | -5/Factory | Discovered exit to Upper Caves (range 16) 24120 | -5/Factory | Garrison activated, responded to threat 24416 | -5/Factory | Build established: Scavenger-Mutant 24418 | -5/Factory | First assault squad dispatched 24757 | -5/Factory | Build established: Skirmisher 24859 | -5/Factory | Discovered new exit (range 9) 24870 | -5/Factory | Entered Extension 24870 | -5/Extension | Accompanied by 1 ally 24990 | -5/Extension | Rescued a captive Derelict 25072 | -5/Extension | Rescued A7 25107 | -5/Extension | Energy Cycler disabled 25107 | -5/Extension | Rescued a captive Derelict 25107 | -5/Extension | Rescued a captive Derelict 25108 | -5/Extension | Rescued a captive Derelict 25108 | -5/Extension | Rescued a captive Derelict 25109 | -5/Extension | Rescued a captive Derelict 25110 | -5/Extension | Rescued a captive Derelict 25112 | -5/Extension | Rescued a captive Derelict 25170 | -5/Extension | First assault squad dispatched 25484 | -5/Extension | Build established: Scavenger-Gunner 25615 | -5/Extension | Spotted B-75 Beast 25622 | -5/Extension | Destroyed B-75 Beast 25635 | -5/Extension | Spotted B-75 Beast 25648 | -5/Extension | Discovered new exit (range 14) 25650 | -5/Extension | Destroyed B-75 Beast 25684 | -5/Extension | Destroyed 7 combat bots 25793 | -5/Extension | Scrapoid reinforcements arrived 25849 | -5/Extension | Found Unknown Device 25849 | -5/Extension | Identified Scrap Suit 25913 | -5/Extension | Murdered 4 allies 26049 | -5/Extension | Discovered new exit (range 10) 26050 | -5/Extension | Discovered new exit (range 6) 26145 | -5/Extension | Entered Cetus 26145 | -5/Cetus | Accompanied by 8 allies (A7) 26150 | -5/Cetus | Acquired a Cetus Manufacturing Module code from A7 26161 | -5/Cetus | Spotted Cetus Guard 26162 | -5/Cetus | Spotted Cetus Guard 26162 | -5/Cetus | Allies destroyed Cetus Guard 26163 | -5/Cetus | Spotted Cetus Guard 26165 | -5/Cetus | Spotted Cetus Guard 26165 | -5/Cetus | Destroyed Cetus Guard 26166 | -5/Cetus | Allies destroyed Cetus Guard 26166 | -5/Cetus | Allies destroyed Cetus Guard 26181 | -5/Cetus | Build established: Scavenger-Scrapper 26241 | -5/Cetus | Started Cetus Manufacturing Module 26266 | -5/Cetus | Manufactured an Enhanced Grunt 26267 | -5/Cetus | Escorted A7 to Cetus Mainframe 26281 | -5/Cetus | Discovered new exit (range 16) 26291 | -5/Cetus | Manufactured an Enhanced Grunt 26298 | -5/Cetus | Spotted Cetus Guard 26299 | -5/Cetus | Spotted Cetus Guard 26301 | -5/Cetus | Spotted Cetus Guard 26301 | -5/Cetus | Destroyed Cetus Guard 26302 | -5/Cetus | Spotted Cetus Guard 26304 | -5/Cetus | Destroyed Cetus Guard 26308 | -5/Cetus | Destroyed Cetus Guard 26316 | -5/Cetus | Manufactured an Enhanced Grunt 26317 | -5/Cetus | Destroyed Cetus Guard 26331 | -5/Cetus | Discovered new exit (range 16) 26337 | -5/Cetus | Met Revision 17 26341 | -5/Cetus | Manufactured an Enhanced Grunt 26366 | -5/Cetus | Manufactured an Enhanced Grunt 26501 | -5/Cetus | Murdered *Prodigal Grandson 26501 | -5/Cetus | Destroyed *Prodigal Grandson 26518 | -5/Cetus | Found Lrg. Botcube 26680 | -5/Cetus | Lrg. Botcube activated 26714 | -5/Cetus | Lrg. Botcube completed mutation into treaded form, armed with 4 guns. 26809 | -5/Cetus | Murdered A7 26813 | -5/Cetus | Extracted ID and sensor layout for unrecognized location from A7's data core 26823 | -5/Cetus | Entered Archives 26823 | -5/Archives | Accompanied by 10 allies 26873 | -5/Archives | Discovered new exit (range 15) 26913 | -5/Archives | Entered Hub_04(d) 26913 | -5/Hub_04(d) | Accompanied by 8 allies 26957 | -5/Hub_04(d) | Found Prototype Device 26957 | -5/Hub_04(d) | Identified Exp. Thermal Shield 27031 | -5/Hub_04(d) | Discovered new exit (range 15) 27047 | -5/Hub_04(d) | Garrison activated, responded to threat 27213 | -5/Hub_04(d) | First assault squad dispatched 27294 | -5/Hub_04(d) | Network Hub disabled 27297 | -5/Hub_04(d) | Destroyed 8 combat bots 27297 | -5/Hub_04(d) | Entered Factory 27297 | -4/Factory | Accompanied by 1 ally 27297 | -4/Factory | Evolved 2 slots: Utility x2 27316 | -4/Factory | Found Quantum Capacitor 27483 | -4/Factory | Discovered new exit (range 14) 27502 | -4/Factory | Identified exit to Upper Caves 27521 | -4/Factory | Found Exp. Terrain Scan Processor 27547 | -4/Factory | First assault squad dispatched 27697 | -4/Factory | Loaded intel: 8 recycling unit locations 27750 | -4/Factory | Discovered new exit (range 27) 28091 | -4/Factory | Discovered new exit (range 30) 28130 | -4/Factory | Cargo convoy interrupted 28130 | -4/Factory | Spotted Executioner 28159 | -4/Factory | Entered Armory 28409 | -4/Armory | First assault squad dispatched 28485 | -4/Armory | Build established: Scavenger-Mutant 28780 | -4/Armory | Loaded intel: 2 recycling unit locations 28935 | -4/Armory | Build established: Scavenger-Tank 29233 | -4/Armory | Found Fusion Bomb Launcher 29240 | -4/Armory | Found Fusion Bomb Launcher 29513 | -4/Armory | Destroyed 7 combat bots 29913 | -4/Armory | High security lockdown imminent 29979 | -4/Armory | Core integrity fell below 50% 29985 | -4/Armory | Discovered new exit (range 3) 29990 | -4/Armory | Lost 11 parts (1p2n6u2w) 29993 | -4/Armory | High security lockdown engaged 30020 | -4/Armory | Spotted B-86 Titan 30068 | -4/Armory | Core integrity fell below 20% 30143 | -4/Armory | Destroyed by G-73 Enforcer with Phase Gun Last Messages --------------- 30072_ Slammed into S-27 Virus. 30077_ S-27 Virus destroyed. 30084_ System corrupted: Heat flow error (+212). 30101_ Slammed into S-27 Virus. 30102_ System corrupted: Component data lost. 30102_ Slammed into S-27 Virus. 30108_ Adv. Cloaking Device destroyed. 30108_ Slammed into S-27 Virus. 30108_ S-27 Virus destroyed. 30109_ Acquired 30 matter. 30113_ ALERT: Assault forces dispatched. 30119_ PWH&OR5/XBRKEI 30141_ Transfer Shaft disabled. Map ----- +----------------------------------------------------+ | ??????????????????????????? | | ??????????????????????????? | | ??????????????????????????? | | ??????????????????????????? | | ??????????????????????????? | | ??????????????????????????? | | ??????????????????????????? | | ??????????????????????????? | | ???????????####?????####### | | ??????????? #?????? | | ??????###? #???????" | | ??????#"## #???????" | | #######" / # ?????" | | # # # # """"" | | # """ # # # | | # "" + #? # | | #s""" g# #?#### | | # #i###############+## | | # """ p# | | #s""" pg | | #s"" g# """"" | | #%[ # """"" ##+### | | #=] !! # """"" # #? | | # ! # # #? | | # # + #? | | # @ = # """ # [[#? | | ##;;#### """ # [[#? | | ?####### F" #? #? | | ????# "" #? #? | | ????# #??##? | | ????# #????? | | ????#### ###########????? | | ??????## ##???????# ### | | ??##??# #????????? | | ??#"### "" #?????????????? | | ???# [ *T" #?????????????? | | ???# ##= #?????????????? | | ???# ## #?????????????? | | ???# #### ###?????????????? | | ???# #??# #???????????????? | | ???# #??# ???????"?"???? | | ???# #??# ?????"Y"???? | | ???# #??## ???"""???? | | ??## #???? #????????? | | ??#" ##??? #????????? | | ??## "#??? #????????? | | ??#" ##??? #????????? | | ??## #???# #????????? | | ???# #???# #?######## | | ???# #???# #?# < + | +----------------------------------------------------+ Best States ------------- Heat Dissipation 105 Energy Generation 45 Energy Capacity 600 Matter Stores 300 Matter Capacity 300 Sight Range 21 Robot Scan Range 16 Terrain Scan Range 30 Terrain Scan Density 1010 Jamming Range 12 Cloak Strength 6 Armor Coverage 1600 Resistance: TH 30 Weapon Shielding 100 Weapon Cycling 20 Phase Shifting 15 Evasion (%) 70 Melee Accuracy 6 Target Analysis 5 Core Analysis 6 Recoil Reduction 8 Matter Filtering 50 Kinecelleration 30 Salvage Targeting 4 Offensive Hacking 14 Item Schematics ----------------- Targeting Computer | -9/Recycling | Hacked Flight Unit | -9/Recycling | Hacked Lgt. Assault Rifle | -9/Recycling | Hacked Ripper | -6/Zion | Free Enh. Flamer | -6/Zion | Free Slug Cannon | -6/Zion | Free Hvy. Riot Gun | -6/Zion | Free Beamcaster | -6/Zion | Free Battle Cannon | -6/Zion | Free Riot Gun | -6/Zion | Free Robot Schematics ------------------ None Fabricated ------------ Nothing Repaired ---------- Lrn. Missile Launcher | 22% | -5/Factory Alien Tech Used ----------------- None Achievements -------------- None Challenges ------------ None Game ------ Seed MinesnifferMasterWheel Manual? 0 Play Time 03:18:30 Cumulative 976.4 hours Start 2025.05.10 @ 19:40:23 End 2025.05.11 @ 00:50:56 Sessions 3 Manual Loads 0 Difficulty Rogue Special Mode None Game No. 591 Rogue 584 Adventurer 0 Explorer 7 Win Type - Total 65 Types 23/6/24/2/0/1/6/1/2/0 Lore% 91 Gallery% 89 Achievement% 85 Wizard Run 0 Options --------- Layout 1 ASCII 0 Keyboard 0 Movement Numpad Keybinds 0 Fullscreen 2 Font 24/Smallcaps Map View 50x35 Zoom Use 0% Tactical HUD 1 Map Filters NONE Filters NONE Steam 1 RUN: 1ff63492-c89e-4a83-a1b1-e127603c32a1